Cogmind - Beta 16 @@@ ROGUE MODE // 2025.11.24 @ 22:53:34 Player: jes Result: Destroyed by B-48 Gladiator with Mace Performance ------------- Evolutions (3) 1500 Regions Visited (5) 1000 Robots Destroyed (151) 755 Value Destroyed (5761) 5761 Prototype IDs (2) 40 Alien Tech Used (0) 0 Bonus (2229) 2229 TOTAL SCORE: 11285 Bonus ------- High Alert Combat Kills 1359 Follower Combat Kills 170 Entered Garrisons 200 Used RIF Installer 500 Cogmind --------- Core Integrity 0/700 Matter 86/300 Energy 275/275 System Corruption 4% Temperature Cool (0) Movement Rolling (150) Ox4 Location -7/Factory Parts ------- > --- POWER (1) -------- Deuterium Engine > --- PROPULSION (4) --- Improved Titanium Leg Light Armored Exoskeleton Armored Wheel > --- UTILITY (6) ------ Large Storage Unit Transport Network Coupler Core Analyzer Hardened Medium Armor Plating > --- WEAPON (2) ------- Heavy Ion Cannon Heavy Missile Launcher > --- INVENTORY (15) --- Medium Treads Medium Treads System Restoration Module Pulse Rifle Plasma Cannon High-powered Shotgun High-powered Shotgun Flak Cannon Flak Cannon Datajack Katana Peak State ------------ > --- POWER ------------ Reinforced Deuterium Engine > --- PROPULSION ------- Light Armored Exoskeleton Armored Huge Wheel > --- UTILITY ---------- Improved Heat Sink Large Storage Unit Transport Network Coupler Core Analyzer Transmission Jammer Improved Light Armor Plating > --- WEAPON ----------- Gatling Laser High-powered Shotgun > --- INVENTORY -------- Deuterium Engine Nuclear Core Improved Treads Armored Wheel Improved Heat Sink System Restoration Module Pulse Rifle Plasma Cannon Heavy Ion Cannon Heavy Assault Rifle Shotgun Heavy Missile Launcher Datajack Katana [Rating: 47] Favorites ----------- Power Nuclear Core Engine Ion Engine Power Core Nuclear Core Propulsion Light Treads Treads Light Treads Leg Carbon-fiber Leg Wheel Armored Huge Wheel Utility Large Storage Unit Device Improved Heat Sink Storage Large Storage Unit Processor Transport Network Coupler Hackware Hacking Suite Protection Core Shielding Weapon High-powered Shotgun Energy Gun Gatling Laser Energy Cannon Advanced Beam Cannon Ballistic Gun High-powered Shotgun Ballistic Cannon Light Cannon Launcher Heavy Missile Launcher Special Weapon Mining Laser Slashing Weapon Katana Special Melee Weapon Datajack Build | -11 -10 -9 -8 -8 -7 ------- Run | Yrd Mat Mat Mat Gar Fac Slots Evolved 6 | . . 2 2 . 2 Power . | . . . . . . Propulsion 2 | . . . 1 . 1 Utility 4 | . . 2 1 . 1 Weapon . | . . . . . . Parts Attached 116 | . 22 15 2 24 53 Power 16 | . 5 3 . 4 4 Engine 8 | . 4 2 . . 2 Core 8 | . 1 1 . 4 2 Reactor . | . . . . . . Propulsion 37 | . 5 6 . 9 17 Treads 19 | . 2 4 . 8 5 Leg 10 | . 2 . . 1 7 Wheel 8 | . 1 2 . . 5 Hover . | . . . . . . Flight . | . . . . . . Utility 38 | . 6 3 1 5 23 Device 21 | . 3 . 1 4 13 Storage 4 | . 1 1 . . 2 Processor 5 | . 2 1 . . 2 Hackware 4 | . . 1 . . 3 Protection 4 | . . . . 1 3 Artifact . | . . . . . . Weapon 25 | . 6 3 1 6 9 Energy Gun 7 | . 2 1 . . 4 Energy Cannon 4 | . . 1 . 2 1 Ballistic Gun 6 | . 1 1 . 3 1 Ballistic Cannon 4 | . 2 . . 1 1 Launcher 1 | . . . . . 1 Special Weapon 1 | . 1 . . . . Impact Weapon . | . . . . . . Slashing Weapon 1 | . . . 1 . . Piercing Weapon . | . . . . . . Special Melee Weapon 1 | . . . . . 1 Unidentified Prototypes 2 | . . 2 . . . Parts Lost 30 | . . 4 . 8 18 Power 3 | . . . . 1 2 Propulsion 9 | . . 3 . 1 5 Utility 13 | . . 1 . 4 8 Weapon 5 | . . . . 2 3 Highest Loss Streak 4 | . . 1 . 3 4 To Critical Strikes . | . . . . . . Average Backups 13 | . 10 13 15 13 14 Power 1 | . 1 1 1 1 1 Propulsion 1 | . 3 1 3 1 1 Utility 2 | . 1 1 2 3 3 Weapon 6 | . 3 8 8 6 6 Tool/Special . | . . . . . . Unused Backups 30 | . 7 6 . 3 14 Power 4 | . 2 1 . . 1 Propulsion 8 | . 4 1 . . 3 Utility 6 | . 1 1 . 1 3 Weapon 12 | . . 3 . 2 7 Tool/Special . | . . . . . . Average Slot Usage (%) 94 | . 97 98 88 98 91 Engine 3 | . 11 10 . . 2 Core 5 | . 2 . 9 8 4 Treads 14 | . 5 11 9 24 10 Leg 5 | . 17 . . 2 7 Wheel 3 | . 5 9 9 . 4 Device 11 | . 6 1 7 8 16 Storage 8 | . 14 11 9 9 7 Processor 14 | . 5 20 18 18 12 Hackware 3 | . . 10 9 . 4 Protection 4 | . . . . 8 3 Energy Gun 3 | . 9 3 9 . 5 Energy Cannon 3 | . . . . 8 1 Ballistic Gun 6 | . 9 4 7 7 5 Ballistic Cannon 3 | . 8 13 . 1 . Peak Build Rating 47 | . 11 23 27 29 47 Average Rating 29 | . 9 15 25 24 38 On Entrance 15 | 6 6 10 23 26 24 Avg Prop Armor Cover (%) 10 | . 10 8 14 4 11 Naked Turns . | . . . . . . Heaviest Build 53 | 12 31 33 34 36 53 Greatest Support 88 | 20 20 40 10 60 88 Greatest Overweight (x) 4 | . 3 3 3 3 4 Average Overweight (x) . | . 1 2 3 . . Largest Inventory Capacity 15 | . 15 15 15 15 15 Average Capacity 14 | . 10 15 15 15 15 Most Carried 15 | . 15 15 15 15 15 Average Carried 13 | . 10 13 15 13 14 Final Capacity 15 | 8 15 15 15 15 15 Final Carried 15 | 6 15 15 15 15 11 Class Distribution -------------------- 77% | Scavenger-Mutant 22% | Mutant Dominant Class ---------------- Mutant | -10/Materials Mutant | -9/Materials Scavenger-Mutant | -8/Materials Scavenger-Mutant | -8/Garrison Scavenger-Mutant | -7/Factory Resources | -11 -10 -9 -8 -8 -7 ----------- Run | Yrd Mat Mat Mat Gar Fac Matter Collected 3129 | 183 319 651 . 662 1314 Remotely . | . . . . . . Salvage Created 5058 | . 827 873 . 1085 2273 Parts 286 | . 52 45 . 70 119 Haulers Intercepted 8 | . 2 3 . . 3 Recyclers Shooed 6 | . 1 . . . 5 Parts Field Recycled . | . . . . . . Retrieved Matter . | . . . . . . Parts Self-Destructed . | . . . . . . Prevented . | . . . . . . Parts Restored . | . . . . . . Kills | -11 -10 -9 -8 -8 -7 ------- Run | Yrd Mat Mat Mat Gar Fac Combat Hostiles Destroyed 107 | . 8 23 . 30 46 Guns 58 | . 8 8 . 12 30 Cannons 43 | . . 15 . 18 10 AOE 6 | . . . . . 6 Classes Destroyed 17 | . 9 3 . 2 3 Worker 7 | . 3 1 . . 3 Builder 7 | . 1 . . . 6 Tunneler 4 | . 3 . . . 1 Hauler 8 | . 2 3 . . 3 Recycler 4 | . 1 . . . 3 Mechanic 2 | . 1 . . . 1 Operator 2 | . 1 1 . . . Watcher 10 | . 3 1 . . 6 Swarmer 17 | . . 4 . 7 6 Cutter 2 | . . . . 2 . Grunt 54 | . 8 14 . 14 18 Brawler 5 | . . . . . 5 Duelist 2 | . . 1 . 1 . Sentry 14 | . . 4 . 4 6 Specialist 2 | . . . . 2 . Hunter 3 | . . . . . 3 Programmer 8 | . . . . . 8 Best Kill Streak 12 | . 8 5 . 5 12 Combat Bots Only 7 | . 2 5 . 5 7 Max Kills in Single Turn 3 | . 1 1 . 2 3 Gunslinging 1 | . . . . 1 1 Exploded 2 | . . . . . 2 Melee . | . . . . . . Uniques/NPCs Destroyed . | . . . . . . Combat | -11 -10 -9 -8 -8 -7 -------- Run | Yrd Mat Mat Mat Gar Fac Hostile Shots Fired 967 | . 39 96 2 203 627 Missed 304 | . 10 19 . 54 221 Hits 663 | . 29 77 2 149 406 Melee 22 | . . 1 . 11 10 Projectile 641 | . 29 76 2 138 396 AOE 2 | . . . . 2 . Critical Strikes 16 | . . 1 . 11 4 Actively Blocked 1 | . . . . 1 . Damage Taken 8605 | . 365 976 32 2131 5101 Core 1133 | . 76 190 . 165 702 Absorbed by Shields . | . . . . . . Redirected to Shielding 35 | . . . . 29 6 Regen/Repaired (Parts) 112 | . . . . . 112 Core Remaining (%) 72 | 100 69 52 . 70 . Volleys Fired 426 | . 77 70 . 122 157 Largest 2 | . 2 2 . 2 2 Hottest 119 | . 100 79 . 98 119 Shots Fired 781 | . 150 139 . 199 293 Gun 489 | . 142 51 . 70 226 Cannon 282 | . 6 88 . 129 59 Launcher 8 | . . . . . 8 Special 2 | . 2 . . . . Kinetic 408 | . 79 114 . 80 135 Thermal 365 | . 71 25 . 119 150 Explosive 8 | . . . . . 8 Electromagnetic . | . . . . . . Robot Hit Streak 26 | . 9 15 . 20 26 Robot Miss Streak 6 | . 3 5 . 5 6 Penetration Max . | . . . . . . Secondary Targets 3 | . . 1 . 1 1 Max Gunslinging Chain 1 | . . 1 . 1 1 Shots Hit Robots 536 | . 92 92 . 110 242 Core Hits 328 | . 46 43 . 55 184 Critical Kills . | . . . . . . Critical Parts Destroyed . | . . . . . . Critical Strikes 6 | . 1 4 . 1 . Burn 4 | . . 4 . . . Blast 2 | . 1 . . 1 . Melee Attacks 26 | . . . 5 . 21 Impact . | . . . . . . Slashing 9 | . . . 5 . 4 Piercing . | . . . . . . Sneak Attacks 15 | . . . . . 15 Combat Hostiles . | . . . . . . Follow-up Attacks . | . . . . . . Damage Inflicted 11828 | . 921 1693 . 2094 7120 Guns 6281 | . 887 637 . 692 4065 Cannons 3288 | . 34 1056 . 1402 796 Explosions 2259 | . . . . . 2259 Melee . | . . . . . . Ramming . | . . . . . . Kinetic 4521 | . 429 1348 . 802 1942 Thermal 5580 | . 492 345 . 1292 3451 Explosive 1727 | . . . . . 1727 Electromagnetic . | . . . . . . Impact . | . . . . . . Slashing . | . . . . . . Piercing . | . . . . . . Highest Corruption 4 | . 1 . . 1 4 Average Corruption 1 | . 1 . . 1 1 Corruption Purged 3 | . . . . . 3 Corruption Blocked . | . . . . . . Effects 61 | . 6 . . 24 31 Message Errors 14 | . 1 . . 5 8 Matter Fused 16 | . . . . 9 7 Heat Flow Errors 10 | . . . . 5 5 Energy Discharges 4 | . . . . 1 3 Data Loss (minor) 8 | . 2 . . 3 3 Data Loss (major) 4 | . 1 . . . 3 Misfires 2 | . 1 . . . 1 Alerts 2 | . 1 . . . 1 Weapon Failures 1 | . . . . 1 . Overload Shots . | . . . . . . Overflow Damage 183 | . . 4 . 9 170 Projectiles 20 | . . 4 . 9 7 Explosions 163 | . . . . . 163 Melee . | . . . . . . Knockbacks 23 | . . 13 . 6 4 Impact . | . . . . . . Kinetic 20 | . . 11 . 6 3 Secondary 3 | . . 2 . . 1 Self-Inflicted Damage 589 | . . . . . 589 Shots 10 | . . . . . 10 Rammed . | . . . . . . Targets Rammed . | . . . . . . Kicked . | . . . . . . Crushed . | . . . . . . Highest Temperature 329 | . 82 111 . 329 262 Average Temperature 38 | . 24 24 . 52 44 Received Heat Transfer 2706 | . 213 435 9 909 1140 Siege Activations . | . . . . . . Martial Activations . | . . . . . . Shielding Activations . | . . . . . . Robots Disrupted . | . . . . . . Combat Hostiles . | . . . . . . Robots Corrupted . | . . . . . . Combat Hostiles . | . . . . . . Parts Fried . | . . . . . . Impact Corruptions . | . . . . . . Robots Melted . | . . . . . . Combat Hostiles . | . . . . . . Parts Melted 6 | . 1 1 . . 4 Heat Transferred 10486 | . 1150 1036 . 2310 5990 Parts Sabotaged . | . . . . . . Parts Stolen . | . . . . . . Parts Stripped . | . . . . . . Power Chain Reactions . | . . . . . . Alert | -11 -10 -9 -8 -8 -7 ------- Run | Yrd Mat Mat Mat Gar Fac Maximum Alert Level 5 | . . 1 . 5 4 Low Security (%) 21 | . 100 78 100 9 . Level 1 8 | . . 21 . 20 . Level 2 29 | . . . . 21 46 Level 3 29 | . . . . 24 45 Level 4 7 | . . . . 13 7 Level 5 3 | . . . . 10 . High Security . | . . . . . . Max Security . | . . . . . . Peak Influence 1719 | . 126 299 5 1719 1460 Initial 902 | . . 3 . 1 902 Average 602 | . 66 96 . 770 725 Influence Increases 4580 | . 341 614 8 1789 1828 Destroy 0b10 Robot/C 2260 | . 160 460 . 720 920 Destroy 0b10 Robot/NC 215 | . 75 30 . . 110 Destroy Leader 446 | . 50 118 . 20 258 Allied During Kill 15 | . . . . 15 . Successful Hack 95 | . 5 4 3 14 69 Disable Machine 255 | . 30 . . . 225 Anti-Garrison Action 900 | . . . . 900 . Destroy Structure 289 | . 21 2 5 105 156 Lose Combat Pursuer 105 | . . . . 15 90 Influence Decreases 3120 | . 332 623 5 73 2087 Entered New Map 825 | . . 6 . 2 817 Time Decay 1418 | . 332 311 5 . 770 Lost Part 251 | . . 20 . 51 180 Lost Ally 40 | . . . . 20 20 Purge Threat 586 | . . 286 . . 300 Squads Dispatched 19 | . 3 2 . . 14 Investigation 4 | . 1 1 . . 2 Extermination 8 | . . . . . 8 Reinforcement 5 | . 2 1 . . 2 Assault 2 | . . . . . 2 Garrison . | . . . . . . Intercept . | . . . . . . Searches Triggered . | . . . . . . Construction Impeded 1 | . . . . . 1 Haulers Reinforced . | . . . . . . Active Scanning Responses . | . . . . . . Cargo Convoy Interrupts . | . . . . . . Stealth | -11 -10 -9 -8 -8 -7 --------- Run | Yrd Mat Mat Mat Gar Fac Distress Signals 3 | . . 3 . . . Communications Jammed 76 | . . . . . 76 Distress Signals 75 | . . . . . 75 Times Spotted 169 | . 20 35 2 39 73 Peak Tracking Total 8 | . 4 8 1 6 8 Tactical Retreats 6 | . . . . 1 5 Traps | -11 -10 -9 -8 -8 -7 ------- Run | Yrd Mat Mat Mat Gar Fac Traps Triggered 6 | . 4 . . 1 1 Indirectly . | . . . . . . Trap Hack Attempts 2 | . . . . . 2 Triggered . | . . . . . . Disarmed . | . . . . . . Reprogrammed 1 | . . . . . 1 Reused . | . . . . . . Traps Extracted . | . . . . . . Installed . | . . . . . . Triggered . | . . . . . . Machines | -11 -10 -9 -8 -8 -7 ---------- Run | Yrd Mat Mat Mat Gar Fac Machines Disabled 21 | . 2 . . 4 15 Max in Single Turn 5 | . 2 . . 1 5 Garrison Access 1 | . . . . . 1 Garrison Relay 4 | . . . . 4 . Machines Repaired . | . . . . . . Machines Dismantled . | . . . . . . Machines Sabotaged . | . . . . . . Overloaded Fab Kills . | . . . . . . Hacking | -11 -10 -9 -8 -8 -7 --------- Run | Yrd Mat Mat Mat Gar Fac Machines Accessed 30 | . 6 3 1 4 16 Terminals 22 | . 5 2 . 4 11 Fabricators . | . . . . . . Repair Stations 1 | . . . . . 1 Recycling Units 3 | . 1 1 . . 1 Scanalyzers 2 | . . . . . 2 Garrison Access 2 | . . . 1 . 1 Total Hacks 77 | . 19 11 2 8 37 Successful 29 | . 8 5 1 2 13 Failed 47 | . 11 6 1 6 23 Catastrophic 14 | . 1 1 . 3 9 Database Lockouts 1 | . . . . . 1 Manual 24 | . 4 7 . . 13 Terminals 58 | . 17 7 . 8 26 Fabricators . | . . . . . . Repair Stations 3 | . . . . . 3 Recycling Units 7 | . 2 4 . . 1 Scanalyzers 6 | . . . . . 6 Garrison Access 3 | . . . 2 . 1 Terminal Hacks 17 | . 6 2 . 2 7 Robot Schematic 1 | . . . . . 1 Robot Analysis 1 | . 1 . . . . Open Door 1 | . . . . 1 . Emergency Access Points 2 | . 1 . . 1 . Terminal Index 1 | . 1 . . . . Alert Level 1 | . 1 . . . . Unreport Threat 4 | . . 2 . . 2 Locate Traps 2 | . . . . . 2 Zone Layout 4 | . 2 . . . 2 Fabricator Hacks . | . . . . . . Repair Station Hacks 2 | . . . . . 2 Scan Component 1 | . . . . . 1 Repair 1 | . . . . . 1 Recycling Unit Hacks 1 | . . 1 . . . Report Inventory 1 | . . 1 . . . Scanalyzer 3 | . . . . . 3 Insert Component 1 | . . . . . 1 Analyze 1 | . . . . . 1 Retrieve Study 1 | . . . . . 1 Garrison Access Hacks 2 | . . . 1 . 1 Unlock Access 1 | . . . 1 . . Seal Access 1 | . . . . . 1 Unauthorized Hacks 4 | . 2 2 . . . Terminals . | . . . . . . Fabricators . | . . . . . . Repair Stations . | . . . . . . Recycling Units 4 | . 2 2 . . . Reject 2 | . 1 1 . . . Recyclers 2 | . 1 1 . . . Scanalyzers . | . . . . . . Garrison Access . | . . . . . . Data Cores Recovered . | . . . . . . Used . | . . . . . . Hacking Detections 26 | . 6 3 . 2 15 Full Trace Events 6 | . 1 1 . 2 2 Feedback Events 1 | . 1 . . . . Corruption 1 | . 1 . . . . Feedback Blocked . | . . . . . . Robot Schematics Acquired 1 | . . . . . 1 Robots Built . | . . . . . . Authchips . | . . . . . . Time . | . . . . . . Total Robot Build Rating . | . . . . . . Part Schematics Acquired 1 | . . . . . 1 Parts Built . | . . . . . . Authchips . | . . . . . . Time . | . . . . . . Total Part Build Rating . | . . . . . . Part Studies Acquired 1 | . . . . . 1 Parts Repaired 1 | . . . . . 1 Time 38 | . . . . . 38 Parts Recycled . | . . . . . . Recycled Matter . | . . . . . . Retrieved Matter . | . . . . . . Retrieved Components . | . . . . . . Parts Scanalyzed 1 | . . . . . 1 Part Schematics Acquired 1 | . . . . . 1 Parts Damaged . | . . . . . . Bothacking | -11 -10 -9 -8 -8 -7 ------------ Run | Yrd Mat Mat Mat Gar Fac Used RIF Installer 1 | . . . . 1 . Robots Hacked 12 | . . . . . 12 Non-combat 11 | . . . . . 11 Combat 1 | . . . . . 1 Robot Hacks Applied 15 | . . . . . 15 no_distress 4 | . . . . . 4 generate_echo 1 | . . . . . 1 find_chute 1 | . . . . . 1 deconstruct_machine 1 | . . . . . 1 hold_bot 1 | . . . . . 1 map_walls 2 | . . . . . 2 randomize_corridors 1 | . . . . . 1 map_earth 1 | . . . . . 1 find_recycling 1 | . . . . . 1 overwrite_iff 1 | . . . . . 1 formatsys_low 1 | . . . . . 1 Relay Couplers Released 21 | . . . . 21 . Machine Destruction 17 | . . . . 17 . Programmers 4 | . . . . 4 . Attached 2 | . . . . . 2 Fabnet Peak Effective % . | . . . . . . Robots Rewired . | . . . . . . Allies Hacked . | . . . . . . Hacks Repelled . | . . . . . . Allies | -11 -10 -9 -8 -8 -7 -------- Run | Yrd Mat Mat Mat Gar Fac Total Allies 4 | . . . . 2 2 Largest Group 2 | . . . . 2 1 Highest-Rated Group 51 | . . . . 51 23 Highest-Rated Ally 31 | . . . . 31 23 Total Orders 1 | . . . . . 1 AID 1 | . . . . . 1 Ally Attacks 31 | . . . . 30 1 Total Damage 452 | . . . . 434 18 Kills 6 | . . . . 6 . Allies Corrupted . | . . . . . . Allies Melted . | . . . . . . Intel | -11 -10 -9 -8 -8 -7 ------- Run | Yrd Mat Mat Mat Gar Fac Active Infowar (turns) 8564 | . 388 967 125 2686 4398 Optics 2 | . 2 . . . . Terrain 2 | . 2 . . . . Seismic 767 | . 88 97 . . 582 T.N.C. 8054 | . . 845 125 2686 4398 Machine Analysis 5487 | . 296 967 125 2686 1413 Jamming 3800 | . . . . . 3800 Robot Analysis Total 1 | . 1 . . . . Derelict Logs Recovered . | . . . . . . Drone Launches . | . . . . . . Drone Recoveries . | . . . . . . Exploration | -11 -10 -9 -8 -8 -7 ------------- Run | Yrd Mat Mat Mat Gar Fac Turns Passed 8971 | . 795 967 125 2686 4398 Spaces Moved 4775 | 1 385 405 71 1375 2538 Core . | . . . . . . Treads 2251 | . . 159 . 1349 743 Legs 187 | 1 175 . . . 11 Wheels 2337 | . 210 246 71 26 1784 Hover . | . . . . . . Flight . | . . . . . . Fastest Speed 95 | 120 95 125 125 125 115 Average Speed 142 | 120 120 163 125 163 131 Slowest Speed 260 | 120 190 250 125 170 260 Overloaded Moves . | . . . . . . Propulsion Burnouts . | . . . . . . Robots Hopped 2 | . . . . 2 . Potential Cave-ins 1 | . . . . . 1 Cave-ins Triggered . | . . . . . . Exploration Rate (%) 41 | 2 57 28 9 98 52 Regions Visited 5 Branch Regions . Pre-discovered Areas . | . . . . . . Known Exits Taken 1 | . . . 1 . . Unknown Exits Taken 3 | 1 1 1 . . . Scrap Searched . | . . . . . . Spaces Dug 27 | . 2 . 5 . 20 Terrain Destroyed 220 | . 37 . 5 . 178 Melee 9 | . . . 5 . 4 Projectile 2 | . 2 . . . . AOE 209 | . 35 . . . 174 Terrain Rammed . | . . . . . . Walls Destroyed . | . . . . . . Machines Disabled . | . . . . . . Actions | -11 -10 -9 -8 -8 -7 --------- Run | Yrd Mat Mat Mat Gar Fac Total 6142 | . 579 580 98 1612 3273 Wait 570 | . 49 56 19 58 388 Move 4767 | . 384 404 71 1370 2538 Hop 2 | . . . . 2 . Pick Up 75 | . 19 15 . 11 30 Fast Attach 41 | . 12 1 1 11 16 Attach 40 | . 3 6 . 9 22 Detach 17 | . 3 1 . 4 9 Swap 82 | . 12 10 2 9 49 Drop 94 | . 20 17 . 16 41 Fire 426 | . 77 70 . 122 157 Melee 26 | . . . 5 . 21 Ram . | . . . . . . Kick . | . . . . . . Crush . | . . . . . . Escape Stasis . | . . . . . . Rewire . | . . . . . . Trap 2 | . . . . . 2 Miscellaneous . | . . . . . . Route ------- -11/Scrapyard -10/Materials (discovered 3 exits: *Mat x2 / [*Sub]) -9/Materials -8/Materials -8/Garrison (discovered 3 exits: *Fac x3) -7/Factory (discovered 3 exits: *Fac / [*Low x2]) History --------- Turn | Location | Event 1 | -11/Scrapyard | Discovered new exit (range 0) 1 | -11/Scrapyard | Entered Materials 313 | -10/Materials | Build established: Mutant 399 | -10/Materials | Discovered new exit (range 10) 601 | -10/Materials | Derelicts attacked the area 624 | -10/Materials | Discovered new exit (range 15) 734 | -10/Materials | Discovered new exit (range 6) 796 | -10/Materials | Entered another Materials area 796 | -9/Materials | Evolved 2 slots: Utility x2 1525 | -9/Materials | Discovered new exit (range 14) 1641 | -9/Materials | Build established: Scavenger-Mutant 1763 | -9/Materials | Entered another Materials area 1763 | -8/Materials | Evolved 2 slots: Propulsion x1, Utility x1 1888 | -8/Materials | Identified exit to Garrison 1888 | -8/Materials | Entered Garrison 1921 | -8/Garrison | Triggered checkpoint 1959 | -8/Garrison | Lost 3 parts (1n2u) 2132 | -8/Garrison | Triggered checkpoint 2240 | -8/Garrison | Garrison Relay disabled 2668 | -8/Garrison | Triggered checkpoint 2700 | -8/Garrison | Discovered new exit (range 15) 2988 | -8/Garrison | Triggered checkpoint 3220 | -8/Garrison | Rescued a captive Derelict 3229 | -8/Garrison | Rescued a captive Derelict 3236 | -8/Garrison | Triggered checkpoint 3262 | -8/Garrison | Garrison Relay disabled 3341 | -8/Garrison | Discovered new exit (range 15) 3586 | -8/Garrison | Triggered checkpoint 3682 | -8/Garrison | Triggered checkpoint 3728 | -8/Garrison | Garrison Relay disabled 3884 | -8/Garrison | Discovered new exit (range 11) 4267 | -8/Garrison | Garrison Relay disabled 4474 | -8/Garrison | Triggered checkpoint 4492 | -8/Garrison | Installed Relay Interface Framework 4574 | -8/Garrison | Entered Factory 4574 | -7/Factory | Evolved 2 slots: Propulsion x1, Utility x1 5988 | -7/Factory | Central database locked down 6004 | -7/Factory | Discovered new exit (range 9) 6060 | -7/Factory | Discovered new exit (range 16) 6248 | -7/Factory | Identified exit to Factory 6454 | -7/Factory | Lost 3 parts (1p1n1w) 7552 | -7/Factory | Discovered new exit (range 11) 7578 | -7/Factory | Core integrity fell below 50% 8006 | -7/Factory | Repaired Hpw. Shotgun 8174 | -7/Factory | First assault squad dispatched 8663 | -7/Factory | Destroyed 7 combat bots 8752 | -7/Factory | Build established: Mutant 8784 | -7/Factory | Core integrity fell below 20% 8852 | -7/Factory | Lost 4 parts (1p2u1w) 8972 | -7/Factory | Destroyed by B-48 Gladiator with Mace Last Messages --------------- 08918_ Detecting nearby Garrison Access. 08921_ AFQ#P OC L 5V4MRK 08945_ U-05 Engineer destroyed. 08945_ M-28 Smith distress signal jammed. 08948_ U-05 Engineer lays Concrete. 08948_ Knocked back. 08952_ U-05 Engineer lays Concrete. 08953_ Transmission Jammer destroyed. 08956_ U-05 Engineer lays Concrete. 08960_ G-47 Trooper destroyed. 08960_ B-48 Gladiator destroyed. 08961_ U-05 Engineer lays Concrete. 08965_ U-05 Engineer builds a Wall. 08970_ The unstable cave ceiling collapses. 08970_ B-48 Gladiator destroyed. 08970_ Assembly Bed disabled. Map ----- +----------------------------------------------------+ | # = # """ """ """ #???????????????????? | | # # #???????????????????? | | # + """ """ """ #???????????????????? | | # # """ """ """ #???????????????????? | | # # """ """ """ #???????????????????? | | # ### #???????????????????? | | ########## """ """ """ #???????????????????? | | ?#= + """ """ """ #???????????????????? | | ?# """ # """ """ """ #???##########??????? | | ?# = """ # #???# #??????? | | ?# """ #! ##### """" #??????? | | ?# #%! ############## + """" #??????? | | ?#########| #????????????# ##### """" #??????? | | ????????## #??????????### #???# """" #??????? | | ?????????# #?????????? # #???# """" #??????? | | ?????????# #????? ???" # #???# """" #??????? | | ?????????# #????? ???" # #???# #??????? | | ?????????# #????? ???" # #???# #??????? | | ?????????# #????# ??"" # #???#####+####??????? | | ?????????# #????# """" # ###### #??????? | | ?????????# #????# """" # ######## | | ??????####+##+###### # " | | ??????# # """" + "T | | ??????# # """" # | | ?????# """" """" # """" # ! ##+##### | | ###?# " "" "" # """"@ ####+###! # | | #!%! " # """"b #??????######### | | # # "" " #??????????????#! | | + YY ??????????????# | | """ # g ?????????????# | | """ ??# # ????????????# | | ""????# " " % ???????????## | | ??????# """" " ### ?"??????????#######+# | | ??????#[ #?###### ? ?????????## | | ??????########## #??????? ?""????????## | | ??????????????# ##??????? "??????????## | | ??????????????#######?????????"??????????## """ "" | | ?????????????????????????????? ??????????## "R %"" | | ?????????????????????????????????????????# """ "" | | ?????????????????????????????????????????##% "" | | ??????a???????????????????????????????????# | | ??????????????????????????????????????????######## | | ?????????????????????????????????????????????????? | | ????????????????????????????????????????????????## | | ????????????????????????????????????????######### | | ????????????????????????????????????????# ### | | ????????????????????????????????????????#""" / | | ????????????????????????????????????????#""" ## | | ????????????????????????????????????????#""" ## | | ????????????????????????????????????????# ### | +----------------------------------------------------+ Best States ------------- Heat Dissipation 75 Energy Generation 16 Energy Capacity 290 Matter Stores 300 Matter Capacity 300 Sight Range 16 Terrain Scan Density 10 Jamming Range 12 Armor Coverage 225 Core Shielding 20 Evasion (%) 55 Core Analysis 6 Recoil Reduction 4 Offensive Hacking 10 Relay Coupler Types 1 Relay Coupler Value 24 Item Schematics ----------------- System Restoration Module | -7/Factory | Scanalyzed Robot Schematics ------------------ S-27 Virus | -7/Factory | Hacked Fabricated ------------ Nothing Repaired ---------- Hpw. Shotgun | 10% | -7/Factory Studied --------- Gatling Laser | -7/Factory | Hacked Alien Tech Used ----------------- None Achievements -------------- None Challenges ------------ None Game ------ Seed LatentDeuteriumBank Manual? 0 Play Time 01:58:51 Cumulative 135.5 hours Start 2025.11.23 @ 14:43:23 End 2025.11.24 @ 22:53:34 Sessions 5 Manual Loads 0 Difficulty Rogue Special Mode None Game No. 65 Rogue 65 Adventurer 0 Explorer 0 Win Type - Total 0 Types 0/0/0/0/0/0/0/0/0/0 Lore% 19 Gallery% 36 Achievement% 27 Wizard Run 0 Options --------- Layout 1 ASCII 1 Keyboard 1 Movement Vi Keybinds 0 Fullscreen 2 Font 24/Terminus Map View 50x35 Zoom Use 0% Tactical HUD 1 Map Filters NONE Filters NONE Steam 1 RUN: 6550598b-1699-43fa-b6d1-6faee53d17ed